{"text_format":"3","workbook":"xlsx","n_sheets":1,"sheets":["ДМШ"],"not_rendered":{"external_links":1,"defined_names":1},"read":"whole","date_system":"1900"}

{"sheet":"ДМШ","index":0,"n_rows":25,"n_cols":116,"rows_kept":25,"merged":[[0,2,1,2],[0,3,1,3],[0,4,1,4],[0,5,1,5],[0,6,1,6],[0,7,1,7],[0,8,0,21],[0,22,0,35],[0,36,0,49],[0,50,0,57],[0,58,0,61],[0,62,0,66],[0,67,0,70],[0,71,0,77],[0,78,0,91],[0,92,0,106],[0,108,0,115]]}
[null,null,"Кол-во детей","Общее количество педагогов ","Кол-во педагогов, имеющие высшую и первую кв.кактегории","доля","балл","место","Участие педагогов в проф.конкурсах",{"$nulls":13},"Выступление педагогов на семинарах, конференциях",{"$nulls":13},"Методические семинары, конференции, проводимые на базе учреждения",{"$nulls":13},"Участие ОО в конкурсах ОО",{"$nulls":7},"Грантовая активность ",{"$nulls":3},"Доступность и открытость ",{"$nulls":4},"Безопасные условия",{"$nulls":3},"Обеспечение образовательного процесса",{"$nulls":6},"Результаты воспитанников",{"$nulls":13}," Городские меропряития   Организация и проведение мероприятий самим учреждением",{"$nulls":15},"Эффективность управления"]
["район","Учреждение",{"$nulls":6},"городской","доля","балл","Республиканский","доля","балл ","Всероссийский","доля","балл ","Международный","доля","балл","итоговый балл ","место","городской","доля","балл","Республиканский","доля","балл","Всероссийский","доля","балл","Международный","доля","балл","итоговый балл","место","городской","доля","балл","Республиканский","доля","балл","Всероссийский","доля","балл","Международный","доля","балл","итоговый балл","место","Республиканский","балл","Всероссийский","балл","Международный","балл","итоговый балл","место","Учреждения","Педагогов","балл","место","Наличие публичного отчета","Наличие финансового отчета","Наличие оперативной информации","балл","место","Налииче детского травматизма","Наличие взрослого травматизма","балл","место","Кол-во детей-инвалидов, ОВЗ","Доля детей-инвалидов, ОВЗ","балл","Наличие адаптированной программы","балл","иттговый балл","место","городской","доля","балл","Республиканский","доля","балл","Всероссийский","доля","балл","Международный","доля","балл","итоговый балл","место","Олимпиады","9 Мая","День защиты детей","день города и РТ","Иные городские мероприятия","Районный","балл","Городской","балл","Республиканский","балл","Всероссийский ","балл","Балл","место","Объем средств, привлеченных за счет оказания платных услуг","объем средств из расчета на 1 чел.","балл","Наличие жалоб","Наличие дисциплинарных взысканий ","балл","место","итоговые баллы","рейтинг"]
[]
[{"$f":"[1]ДМШ!A7","v":"Прив"},{"$f":"[1]ДМШ!B7","v":"ЦВР"}]
[{"$f":"[1]ДМШ!A5","v":"Мос"},{"$f":"[1]ДМШ!B5","v":"ЦВР"}]
[{"$f":"[1]ДМШ!A8","v":"Мос"},{"$f":"[1]ДМШ!B8","v":"Шарм"},1160,21,16,76,3,null,11,20.3,22,28,51.8,56,14,26,42,1,1.9,3,123,null,5,12.8,10,4,10.2,8,22,56.5,66,8,20.5,24,108,null,3,30,6,3,30,6,3,30,9,1,10,3,24,null,1,2,2,6,0,0,8,null,0,5,10,null,1,1,1,3,null,0,0,0,null,0,{"v":0,"d":"0.0"},0,0,0,0,null,61,17.5,122,11,3.2,22,157,44.8,471,127,34.5,381,"996",null,2,1,0,0,5,3,3,8,16,1,3,7,28,67,null,{"v":7353388,"d":"7353388.00"},7353.388,4,0,0,10,null,1356]
["Вах","ГДТТ им.А.Алиша"]
["Вах",{"$f":"[1]ДМШ!B9","v":"ЦДТ"}]
[{"$f":"[1]ДМШ!A13","v":"Кир"},{"$f":"[1]ДМШ!B13","v":"ЦДТТ им.В.П.Чкалова"}]
[{"$f":"[1]ДМШ!A6","v":"Сов"},{"$f":"[1]ДМШ!B6","v":"ГДЭБЦ"}]
[{"$f":"[1]ДМШ!A22","v":"Сов"},{"$f":"[1]ДМШ!B22","v":" \"Танкодром\""}]
["Сов","ЦДТ \"Азино\""]
[{"$f":"[1]ДМШ!A15","v":"Н-С"},{"$f":"[1]ДМШ!B15","v":"\"Простор\""}]
[{"$f":"[1]ДМШ!A24","v":"Сов"},{"$f":"[1]ДМШ!B24","v":"ЦДТ \"Дербышки\""}]
[{"$f":"[1]ДМШ!A12","v":"Кир"},{"$f":"[1]ДМШ!B12","v":"Заречье"}]
[{"$f":"[1]ДМШ!A17","v":"Прив"},{"$f":"[1]ДМШ!B17","v":"ЦДТ \"Олимп\""}]
[{"$f":"[1]ДМШ!A20","v":"Мос"},{"$f":"[1]ДМШ!B20","v":"ДДЮТиЭ"}]
[{"$f":"[1]ДМШ!A23","v":"Прив"},{"$f":"[1]ДМШ!B23","v":" \"Молодость\""}]
[{"$f":"[1]ДМШ!A10","v":"Сов"},{"$f":"[1]ДМШ!B10","v":"ЦДТ \"ДА\""}]
[{"$f":"[1]ДМШ!A14","v":"Авиа"},{"$f":"[1]ДМШ!B14","v":"ЦВР"}]
[{"$f":"[1]ДМШ!A16","v":"Вах"},{"$f":"[1]ДМШ!B16","v":"ГЦОиРД"}]
[{"$f":"[1]ДМШ!A21","v":"Сов"},{"$f":"[1]ДМШ!B21","v":"СДЮТиЭ"}]
[{"$f":"[1]ДМШ!A19","v":"Н-С"},{"$f":"[1]ДМШ!B19","v":"ЦДТ"}]
[{"$f":"[1]ДМШ!A18","v":"Н-С"},{"$f":"[1]ДМШ!B18","v":"ЦВР"}]
[{"$f":"[1]ДМШ!A25","v":"Вах"},{"$f":"[1]ДМШ!B25","v":"Факел"}]